fUST/lending_fUST_20240606
["ID","MTS","AMOUNT","RATE_DAILY","PERIOD"]
[328650281,1717678238617,-1298.19586907,0.0002,2]
[328650282,1717678238629,-2442.47125316,0.0002,2]
[328650283,1717678238642,-2292.16534364,0.0002,2]
[328650284,1717678238688,-5261.67772673,0.0002,2]
[328650294,1717678241813,-14228.6,0.0002,2]
[328650296,1717678243919,-1961.36275003,0.0002,2]
[328650298,1717678243931,-35291.23903462,0.0002,2]
[328650314,1717678244619,-9367.89967924,0.0002,2]
[328650402,1717678246611,-23376.26225915,0.0002,2]
[328650404,1717678246620,-1000.0,0.0002,2]
[328650405,1717678246630,-275.45969432,0.00021807,2]
[328650406,1717678246640,-166.666666,0.00021808,2]
[328650407,1717678246649,-150.0,0.00023624,2]
[328650408,1717678246659,-791.7060563,0.000239,2]
[328650409,1717678276524,489.4618939,9.999e-05,2]
[328650411,1717678351557,721.95297279,9.999e-05,2]
[328650444,1717678875555,814.29805521,0.000279,120]
[328650496,1717679432803,-1000.0,0.00021,2]
[328650498,1717679432813,-343.85895657,0.00021049,2]
[328650500,1717679432823,-46615.11241243,0.00021148,2]
[328650502,1717679432832,-12923.08427776,0.00021149,2]
[328650576,1717679438826,-194.92546321,0.00021148,2]
[328650578,1717679438836,-2774.06035387,0.00021149,2]
[328650582,1717679438860,-9202.85536837,0.00021149,2]
[328650584,1717679438870,-166.666666,0.00021808,2]
[328650586,1717679438880,-343.85895651,0.00021885,2]
[328650588,1717679438889,-166.6666667,0.00021918,2]
[328650590,1717679438899,-1000.0,0.00022,2]
[328650592,1717679438909,-343.85895651,0.00022721,2]
[328650595,1717679438919,-1000.0,0.00023,2]
[328650597,1717679438928,-343.85895651,0.00023557,2]
[328650599,1717679438938,-150.0,0.00023624,2]
[328650601,1717679438948,-4236.27632862,0.00023694,2]
[328650603,1717679438958,-1907.50986872,0.000238,2]
[328650605,1717679438967,-174.48721462,0.00023999,2]
[328650606,1717679438977,-1000.0,0.00024,2]
[328650608,1717679438987,-30166.5378415,0.00024,2]
[328650609,1717679438997,-500.0,0.00024103,3]
[328650610,1717679439006,-156.19711529,0.00024254,2]
[328650611,1717679439016,-343.85895651,0.00024392,2]
[328650612,1717679439026,-500.0,0.00024402,4]
[328650613,1717679439036,-500.0,0.00024402,4]
[328650615,1717679439045,-500.0,0.00024402,4]
[328650617,1717679439055,-500.0,0.00024402,4]
[328650618,1717679439066,-19047.000001,0.0002449,2]
[328650620,1717679439076,-100221.53029318,0.000245,2]
[328650622,1717679439086,-214.77484133,0.000245,2]
[328650624,1717679439096,-153.0,0.00024548,2]
[328650626,1717679439106,-205.1548009,0.00024548,2]
[328650628,1717679439117,-153.0,0.00024548,2]
[328650630,1717679439127,-153.0,0.00024548,2]
[328650632,1717679439137,-153.0,0.00024548,2]
[328650634,1717679439147,-205.1548009,0.00024548,2]
[328650636,1717679439157,-153.0,0.00024548,2]
[328650638,1717679439167,-153.0,0.00024548,2]
[328650640,1717679439177,-204.8101321,0.00024548,2]
[328650642,1717679439187,-153.0,0.00024548,2]
[328650644,1717679439197,-153.0,0.00024548,2]
[328650646,1717679439207,-153.0,0.00024548,2]
[328650648,1717679439218,-153.0,0.00024548,2]
[328650650,1717679439233,-153.0,0.00024548,2]
[328650652,1717679439243,-153.0,0.00024548,2]
[328650653,1717679439254,-153.0,0.00024548,2]
[328650655,1717679439264,-447.534355,0.00024548,2]
[328650657,1717679439276,-153.0,0.00024548,2]
[328650658,1717679439290,-153.0,0.00024548,2]
[328650660,1717679439302,-205.1548009,0.00024548,2]
[328650661,1717679439313,-153.0,0.00024548,2]
[328650662,1717679439323,-153.0,0.00024548,2]
[328650663,1717679439334,-153.0,0.00024548,2]
[328650664,1717679439345,-153.0,0.00024548,2]
[328650665,1717679439355,-153.0,0.00024548,2]
[328650666,1717679439367,-153.0,0.00024548,2]
[328650667,1717679439377,-176.903949,0.00024548,2]
[328650668,1717679439387,-3339.74686373,0.00024557,7]
[328650669,1717679439398,-1494.91586224,0.00024557,7]
[328650670,1717679439408,-88888.0,0.00024557,3]
[328650671,1717679439418,-162.87809969,0.00024655,2]
[328650672,1717679439427,-392.94075282,0.00024655,2]
[328650673,1717679439437,-1903.43712619,0.00024655,2]
[328650674,1717679439447,-606.06312262,0.00024655,2]
[328650675,1717679439456,-720.96351067,0.00024655,2]
[328650676,1717679439466,-11049.51431687,0.00024655,2]
[328650677,1717679439481,-2812.13279208,0.00024655,2]
[328650678,1717679439492,-303.96130094,0.00024656,2]
[328650679,1717679439502,-500.0,0.00024657,2]
[328650680,1717679439512,-500.0,0.00024657,2]
[328650681,1717679439522,-298.91027966,0.00024657,2]
[328650682,1717679439532,-527.03551814,0.00024657,2]
[328650683,1717679439542,-502.13325846,0.00024657,2]
[328650684,1717679439551,-505.05332629,0.00024657,2]
[328650685,1717679439561,-504.82390423,0.00024657,2]
[328650686,1717679439571,-514.49248772,0.00024657,2]
[328650687,1717679439582,-500.0,0.00024657,2]
[328650688,1717679439591,-500.0,0.00024657,2]
[328650689,1717679439601,-500.0,0.00024657,2]
[328650690,1717679439611,-550.14485303,0.00024657,2]
[328650691,1717679439622,-500.0,0.00024657,2]
[328650692,1717679439633,-516.45174486,0.00024657,2]
[328650693,1717679439644,-500.0,0.00024657,2]
[328650694,1717679439654,-500.0,0.00024657,2]
[328650695,1717679439664,-500.0,0.00024657,2]
[328650696,1717679439675,-505.68179822,0.00024657,2]
[328650697,1717679439687,-500.14859382,0.00024657,2]
[328650698,1717679439698,-503.74567156,0.00024657,2]
[328650699,1717679439709,-501.92815237,0.00024657,2]
[328650700,1717679439719,-500.0,0.00024657,2]
[328650701,1717679439732,-500.0,0.00024657,2]
[328650702,1717679439742,-500.15654508,0.00024657,2]
[328650703,1717679439753,-617.39225172,0.00024657,2]
[328650704,1717679439763,-500.37314789,0.00024657,2]
[328650705,1717679439774,-500.0,0.00024657,2]
[328650706,1717679439784,-500.67417251,0.00024657,2]
[328650707,1717679439794,-500.0,0.00024657,2]
[328650708,1717679439805,-500.0,0.00024657,2]
[328650709,1717679439817,-500.0,0.00024657,2]
[328650710,1717679439827,-500.0,0.00024657,2]
[328650711,1717679439837,-500.0,0.00024657,2]
[328650712,1717679439847,-500.0,0.00024657,2]
[328650713,1717679439858,-577.66149049,0.00024657,2]
[328650714,1717679439868,-500.0,0.00024657,2]
[328650715,1717679439879,-500.0,0.00024657,2]
[328650716,1717679439890,-500.0,0.00024657,2]
[328650717,1717679439901,-500.0,0.00024657,2]
[328650718,1717679439913,-500.0,0.00024657,2]
[328650719,1717679439924,-489.57379385,0.00024657,2]
[328650720,1717679439934,-500.0,0.00024657,2]
[328650721,1717679439944,-500.0,0.00024657,2]
[328650722,1717679440025,-500.0,0.00024657,2]
[328650723,1717679440035,-500.0,0.00024657,2]
[328650724,1717679440045,-500.0,0.00024657,2]
[328650725,1717679440055,-500.0,0.00024657,2]
[328650726,1717679440065,-500.0,0.00024657,2]
[328650727,1717679440074,-500.0,0.00024657,2]
[328650728,1717679440084,-501.53919583,0.00024657,2]
[328650729,1717679440094,-500.0,0.00024657,2]
[328650730,1717679440103,-283.00068631,0.00024657,2]
[328650731,1717679440113,-500.0,0.00024657,2]
[328650732,1717679440122,-500.0,0.00024657,2]
[328650733,1717679440132,-500.0,0.00024657,2]
[328650734,1717679440142,-523.11280197,0.00024657,2]
[328650735,1717679440151,-500.0,0.00024657,2]
[328650736,1717679440161,-500.0,0.00024657,2]
[328650737,1717679440170,-500.0,0.00024657,2]
[328650738,1717679440179,-500.0,0.00024657,2]
[328650739,1717679440189,-500.0,0.00024657,2]
[328650740,1717679440198,-500.0,0.00024657,2]
[328650741,1717679440207,-316.88698665,0.00024657,2]
[328650742,1717679440217,-500.0,0.00024657,2]
[328650743,1717679440230,-500.0,0.00024657,2]
[328650744,1717679440240,-501.38927062,0.00024657,2]
[328650745,1717679440249,-504.04534883,0.00024657,2]
[328650746,1717679440259,-501.01620068,0.00024657,2]
[328650747,1717679440269,-500.0,0.00024657,2]
[328650748,1717679440279,-524.81272304,0.00024657,2]
[328650749,1717679440293,-500.0,0.00024657,2]
[328650750,1717679440302,-520.2028695,0.00024657,2]
[328650751,1717679440312,-500.0,0.00024657,2]
[328650752,1717679440322,-500.0,0.00024657,2]
[328650753,1717679440331,-500.0,0.00024657,2]
[328650754,1717679440341,-500.0,0.00024657,2]
[328650755,1717679440350,-500.0,0.00024657,2]
[328650756,1717679440361,-500.0,0.00024657,2]
[328650757,1717679440371,-500.0,0.00024657,2]
[328650758,1717679440381,-500.0,0.00024657,2]
[328650759,1717679440391,-500.0,0.00024657,2]
[328650760,1717679440401,-500.0,0.00024657,2]
[328650761,1717679440411,-500.0,0.00024657,2]
[328650762,1717679440421,-505.43779126,0.00024657,2]
[328650763,1717679440431,-500.0,0.00024657,2]
[328650764,1717679440441,-500.0,0.00024657,2]
[328650765,1717679440451,-501.65321773,0.00024657,2]
[328650766,1717679440461,-500.0,0.00024657,2]
[328650767,1717679440472,-500.0,0.00024657,2]
[328650768,1717679440481,-500.0,0.00024657,2]
[328650769,1717679440490,-500.0,0.00024657,2]
[328650770,1717679440499,-500.0,0.00024657,2]
[328650771,1717679440509,-524.48822253,0.00024657,2]
[328650772,1717679440529,-500.0,0.00024657,2]
[328650773,1717679440547,-500.0,0.00024657,2]
[328650774,1717679440564,-500.0,0.00024657,2]
[328650775,1717679440584,-500.0,0.00024657,2]
[328650776,1717679440606,-504.60082719,0.00024657,2]
[328650777,1717679440625,-515.71932315,0.00024657,2]
[328650778,1717679440641,-500.0,0.00024657,2]
[328650779,1717679440660,-500.0,0.00024657,2]
[328650780,1717679440674,-201.94442005,0.00024657,2]
[328650781,1717679440691,-500.0,0.00024657,2]
[328650782,1717679440709,-500.0,0.00024657,2]
[328650783,1717679440731,-500.0,0.00024657,2]
[328650784,1717679440747,-500.0,0.00024657,2]
[328650785,1717679440761,-500.0,0.00024657,2]
[328650786,1717679440780,-500.0,0.00024657,2]
[328650787,1717679440793,-500.89200816,0.00024657,2]
[328650788,1717679440809,-500.0,0.00024657,2]
[328650789,1717679440823,-500.69770609,0.00024657,2]
[328650790,1717679440836,-500.0,0.00024657,2]
[328650791,1717679440850,-500.0,0.00024657,2]
[328650792,1717679440865,-500.0,0.00024657,2]
[328650793,1717679440880,-500.0,0.00024657,2]
[328650794,1717679440894,-500.0,0.00024657,2]
[328650795,1717679440908,-500.0,0.00024657,2]
[328650796,1717679440923,-500.0,0.00024657,2]
[328650798,1717679440936,-500.0,0.00024657,2]
[328650799,1717679440950,-500.0,0.00024657,2]
[328650800,1717679440963,-258.3114546,0.00024657,2]
[328650801,1717679440979,-195.89626363,0.00024657,2]
[328650802,1717679440993,-500.0,0.00024657,2]
[328650803,1717679441007,-500.0,0.00024657,2]
[328650804,1717679441022,-500.0,0.00024657,2]
[328650805,1717679441037,-500.0,0.00024657,2]
[328650806,1717679441052,-337.26021651,0.00024657,2]
[328650807,1717679441066,-868.95,0.00024657,2]
[328650808,1717679441080,-500.0,0.00024657,2]
[328650809,1717679441094,-500.0,0.00024657,2]
[328650810,1717679441109,-520.948984,0.00024657,2]
[328650811,1717679441123,-520.948984,0.00024657,2]
[328650813,1717679441137,-520.948984,0.00024657,2]
[328650816,1717679441151,-520.948984,0.00024657,2]
[328650817,1717679441165,-520.948984,0.00024657,2]
[328650818,1717679441178,-500.0,0.00024657,2]
[328650819,1717679441192,-520.948984,0.00024657,2]
[328650820,1717679441206,-520.948984,0.00024657,2]
[328650821,1717679441221,-520.948984,0.00024657,2]
[328650822,1717679441236,-520.948984,0.00024657,2]
[328650823,1717679441250,-515.17284267,0.00024657,2]
[328650824,1717679441260,-520.948984,0.00024657,2]
[328650825,1717679441270,-520.948984,0.00024657,2]
[328650826,1717679441282,-520.948984,0.00024657,2]
[328650827,1717679441427,-520.948984,0.00024657,2]
[328650828,1717679441437,-500.6077994,0.00024657,2]
[328650829,1717679441446,-520.948984,0.00024657,2]
[328650830,1717679441456,-500.0,0.00024657,2]
[328650831,1717679441465,-520.948984,0.00024657,2]
[328650832,1717679441476,-500.0,0.00024657,2]
[328650833,1717679441485,-500.0,0.00024657,2]
[328650834,1717679441494,-500.0,0.00024657,2]
[328650835,1717679441503,-520.948984,0.00024657,2]
[328650836,1717679441512,-520.948984,0.00024657,2]
[328650837,1717679441521,-520.948984,0.00024657,2]
[328650838,1717679441531,-520.948984,0.00024657,2]
[328650839,1717679441540,-520.948994,0.00024657,2]
[328650840,1717679441550,-175.27457788,0.00024657,2]
[328650841,1717679441559,-500.0,0.00024657,2]
[328650842,1717679441569,-500.0,0.00024657,2]
[328650843,1717679441578,-500.0,0.00024657,2]
[328650844,1717679441587,-957.2,0.00024657,2]
[328650845,1717679441596,-500.0,0.00024657,2]
[328650846,1717679441606,-500.0,0.00024657,2]
[328650847,1717679441615,-500.0,0.00024657,2]
[328650848,1717679441625,-500.0,0.00024657,2]
[328650849,1717679441634,-500.0,0.00024657,2]
[328650850,1717679441643,-500.0,0.00024657,2]
[328650851,1717679441653,-163.12044282,0.00024657,2]
[328650852,1717679441662,-500.0,0.00024657,2]
[328650853,1717679441671,-867.82,0.00024657,2]
[328650854,1717679441680,-503.17556946,0.00024657,2]
[328650855,1717679441690,-500.0,0.00024657,2]
[328650856,1717679441700,-500.0,0.00024657,2]
[328650857,1717679441710,-440.11530387,0.00024657,2]
[328650858,1717679441720,-500.0,0.00024657,2]
[328650859,1717679441731,-500.0,0.00024657,2]
[328650860,1717679441741,-500.0,0.00024657,2]
[328650861,1717679441751,-500.0,0.00024657,2]
[328650862,1717679441761,-500.0,0.00024657,2]
[328650863,1717679441771,-522.38,0.00024657,2]
[328650864,1717679441780,-501.94891195,0.00024657,2]
[328650865,1717679441790,-500.0,0.00024657,2]
[328650866,1717679441800,-504.63965132,0.00024657,2]
[328650867,1717679441810,-151.0,0.00024657,2]
[328650868,1717679441819,-500.0,0.00024657,2]
[328650869,1717679441829,-151.0,0.00024657,2]
[328650870,1717679441840,-151.0,0.00024657,2]
[328650871,1717679441850,-151.0,0.00024657,2]
[328650872,1717679441859,-500.0,0.00024657,2]
[328650873,1717679441869,-151.0,0.00024657,2]
[328650874,1717679441879,-245.0,0.00024657,2]
[328650875,1717679441888,-506.92381745,0.00024657,2]
[328650876,1717679441898,-908.68,0.00024657,2]
[328650877,1717679441908,-908.68,0.00024657,2]
[328650878,1717679441917,-908.68,0.00024657,2]
[328650879,1717679441927,-908.68,0.00024657,2]
[328650880,1717679441936,-908.68,0.00024657,2]
[328650881,1717679441947,-908.68,0.00024657,2]
[328650882,1717679441956,-908.68,0.00024657,2]
[328650883,1717679441966,-908.68,0.00024657,2]
[328650884,1717679441979,-908.68,0.00024657,2]
[328650885,1717679441989,-530.906746,0.00024657,2]
[328650886,1717679441998,-908.68,0.00024657,2]
[328650887,1717679442007,-500.0,0.00024657,2]
[328650888,1717679442016,-500.0,0.00024657,2]
[328650889,1717679442025,-500.0,0.00024657,2]
[328650890,1717679442035,-500.0,0.00024657,2]
[328650891,1717679442043,-500.0,0.00024657,2]
[328650892,1717679442053,-500.0,0.00024657,2]
[328650893,1717679442063,-500.0,0.00024657,2]
[328650894,1717679442073,-503.14256643,0.00024657,2]
[328650895,1717679442083,-500.0,0.00024657,2]
[328650896,1717679442092,-503.11827042,0.00024657,2]
[328650897,1717679442102,-500.0,0.00024657,2]
[328650898,1717679442111,-500.0,0.00024657,2]
[328650899,1717679442121,-500.0,0.00024657,2]
[328650900,1717679442131,-492.16827331,0.00024657,2]
[328650901,1717679442142,-500.0,0.00024657,2]
[328650902,1717679442152,-500.0,0.00024657,2]
[328650903,1717679442162,-500.52859361,0.00024657,2]
[328650904,1717679442171,-500.0,0.00024657,2]
[328650905,1717679442181,-505.95545993,0.00024657,2]
[328650906,1717679442190,-500.0,0.00024657,2]
[328650907,1717679442200,-500.0,0.00024657,2]
[328650908,1717679442210,-500.0,0.00024657,2]
[328650909,1717679442219,-500.0,0.00024657,2]
[328650910,1717679442234,-500.0,0.00024657,2]
[328650911,1717679442244,-1427.35,0.00024657,2]
[328650912,1717679442253,-868.2,0.00024657,2]
[328650913,1717679442263,-506.13114056,0.00024657,2]
[328650914,1717679442272,-500.0,0.00024657,2]
[328650915,1717679442281,-500.0,0.00024657,2]
[328650916,1717679442293,-500.0,0.00024657,2]
[328650917,1717679442303,-502.7999317,0.00024657,2]
[328650918,1717679442313,-500.0,0.00024657,2]
[328650919,1717679442322,-500.59207061,0.00024657,2]
[328650920,1717679442333,-500.0,0.00024657,2]
[328650921,1717679442344,-504.14216852,0.00024657,2]
[328650922,1717679442354,-503.79111132,0.00024657,2]
[328650923,1717679442366,-273.9946026,0.00024657,2]
[328650924,1717679442376,-500.0,0.00024657,2]
[328650925,1717679442385,-500.0,0.00024657,2]
[328650926,1717679442395,-583.89440153,0.00024657,2]
[328650927,1717679442405,-500.0,0.00024657,2]
[328650928,1717679442415,-578.36,0.00024657,2]
[328650929,1717679442424,-312.70576671,0.00024657,2]
[328650930,1717679442434,-909.7,0.00024657,2]
[328650931,1717679442444,-552.54986828,0.00024657,2]
[328650932,1717679442453,-502.58153009,0.00024657,2]
[328650933,1717679442463,-513.21175853,0.00024657,2]
[328650934,1717679442472,-200.0,0.00024657,2]
[328650935,1717679442485,-506.91613975,0.00024657,2]
[328650936,1717679442494,-500.0,0.00024657,2]
[328650937,1717679442503,-501.17361634,0.00024657,2]
[328650938,1717679442512,-500.0,0.00024657,2]
[328650939,1717679442521,-500.0,0.00024657,2]
[328650940,1717679442530,-533.3892062,0.00024657,2]
[328650941,1717679442539,-500.0,0.00024657,2]
[328650942,1717679442549,-500.55287067,0.00024657,2]
[328650943,1717679442558,-500.0,0.00024657,2]
[328650944,1717679442568,-502.20120901,0.00024657,2]
[328650945,1717679442578,-500.0,0.00024657,2]
[328650946,1717679442589,-500.0,0.00024657,2]
[328650947,1717679442599,-500.0,0.00024657,2]
[328650948,1717679442610,-500.0,0.00024657,2]
[328650949,1717679442620,-500.0,0.00024657,2]
[328650950,1717679442629,-537.93420019,0.00024657,2]
[328650951,1717679442639,-500.0,0.00024657,2]
[328650952,1717679442649,-500.0,0.00024657,2]
[328650953,1717679442659,-500.0,0.00024657,2]
[328650954,1717679442670,-530.57556965,0.00024657,2]
[328650955,1717679442680,-500.0,0.00024657,2]
[328650956,1717679442690,-500.0,0.00024657,2]
[328650958,1717679442700,-500.0,0.00024657,2]
[328650959,1717679442710,-500.0,0.00024657,2]
[328650960,1717679442719,-238.85529565,0.00024657,2]
[328650961,1717679442734,-500.0,0.00024657,2]
[328650962,1717679442743,-500.0,0.00024657,2]
[328650963,1717679442753,-500.0,0.00024657,2]
[328650964,1717679442762,-501.71855782,0.00024657,2]
[328650965,1717679442772,-501.0544169,0.00024657,2]
[328650966,1717679442781,-500.27,0.00024657,2]
[328650967,1717679442790,-500.0,0.00024657,2]
[328650968,1717679442800,-500.0,0.00024657,2]
[328650969,1717679442809,-500.0,0.00024657,2]
[328650970,1717679442819,-500.0,0.00024657,2]
[328650971,1717679442829,-500.0,0.00024657,2]
[328650972,1717679442839,-2845.07,0.00024657,2]
[328650973,1717679442849,-500.0,0.00024657,2]
[328650974,1717679442859,-500.0,0.00024657,2]
[328650975,1717679442869,-503.31444845,0.00024657,2]
[328650976,1717679442878,-500.0,0.00024657,2]
[328650977,1717679442889,-501.46563703,0.00024657,2]
[328650978,1717679442899,-372.64671708,0.00024657,2]
[328650979,1717679442909,-500.0,0.00024657,2]
[328650980,1717679442918,-265.84727731,0.00024657,2]
[328650981,1717679442929,-500.0,0.00024657,2]
[328650982,1717679442938,-500.0,0.00024657,2]
[328650983,1717679442948,-500.0,0.00024657,2]
[328650984,1717679442957,-500.0,0.00024657,2]
[328650985,1717679442967,-502.31521493,0.00024657,2]
[328650986,1717679442979,-500.0,0.00024657,2]
[328650987,1717679442988,-504.90987924,0.00024657,2]
[328650988,1717679442998,-634.17280286,0.00024657,2]
[328650989,1717679443007,-500.0,0.00024657,2]
[328650990,1717679443016,-500.0,0.00024657,2]
[328650991,1717679443027,-500.0,0.00024657,2]
[328650992,1717679443037,-500.0,0.00024657,2]
[328650993,1717679443047,-500.0,0.00024657,2]
[328650994,1717679443056,-500.0,0.00024657,2]
[328650995,1717679443066,-500.0,0.00024657,2]
[328650996,1717679443076,-500.0,0.00024657,2]
[328650997,1717679443161,-500.0,0.00024657,2]
[328650998,1717679443170,-500.0,0.00024657,2]
[328650999,1717679443181,-500.0,0.00024657,2]
[328651000,1717679443192,-750.97,0.00024657,2]
[328651001,1717679443202,-390.4190349,0.00024657,2]
[328651002,1717679443212,-500.0,0.00024657,2]
[328651003,1717679443221,-500.0,0.00024657,2]
[328651004,1717679443234,-500.0,0.00024657,2]
[328651005,1717679443243,-500.0,0.00024657,2]
[328651007,1717679443254,-1041.76,0.00024657,2]
[328651009,1717679443264,-500.0,0.00024657,2]
[328651011,1717679443274,-500.0,0.00024657,2]
[328651014,1717679443287,-502.79190407,0.00024657,2]
[328651016,1717679443297,-500.0,0.00024657,2]
[328651018,1717679443307,-500.0,0.00024657,2]
[328651020,1717679443317,-500.0,0.00024657,2]
[328651022,1717679443327,-500.0,0.00024657,2]
[328651024,1717679443336,-500.0,0.00024657,2]
[328651026,1717679443345,-500.0,0.00024657,2]
[328651028,1717679443355,-500.0,0.00024657,2]
[328651030,1717679443367,-452.81905366,0.00024657,2]
[328651033,1717679443377,-500.0,0.00024657,2]
[328651035,1717679443386,-504.8708622,0.00024657,2]
[328651037,1717679443396,-500.0,0.00024657,2]
[328651039,1717679443406,-500.77830058,0.00024657,2]
[328651040,1717679443415,-500.0,0.00024657,2]
[328651041,1717679443424,-503.09226001,0.00024657,2]
[328651042,1717679443434,-500.0,0.00024657,2]
[328651043,1717679443443,-503.47120415,0.00024657,2]
[328651044,1717679443454,-500.0,0.00024657,2]
[328651045,1717679443463,-500.0,0.00024657,2]
[328651046,1717679443473,-505.54806492,0.00024657,2]
[328651047,1717679443486,-500.0,0.00024657,2]
[328651048,1717679443495,-531.5324545,0.00024657,2]
[328651049,1717679443504,-500.0,0.00024657,2]
[328651050,1717679443514,-503.1961321,0.00024657,2]
[328651051,1717679443523,-501.75100723,0.00024657,2]
[328651052,1717679443533,-504.25967827,0.00024657,2]
[328651054,1717679443543,-502.08517868,0.00024657,2]
[328651056,1717679443553,-504.82475911,0.00024657,2]
[328651058,1717679443562,-501.00579062,0.00024657,2]
[328651059,1717679443572,-500.0,0.00024657,2]
[328651061,1717679443581,-500.0,0.00024657,2]
[328651063,1717679443591,-504.65663054,0.00024657,2]
[328651065,1717679443600,-500.0,0.00024657,2]
[328651066,1717679443610,-500.53355497,0.00024657,2]
[328651068,1717679443619,-500.0,0.00024657,2]
[328651070,1717679443628,-500.0,0.00024657,2]
[328651071,1717679443638,-502.50622504,0.00024657,2]
[328651072,1717679443647,-269.84731065,0.00024657,2]
[328651073,1717679443657,-507.58050797,0.00024657,2]
[328651074,1717679443667,-500.0,0.00024657,2]
[328651075,1717679443677,-7109.03,0.00024657,2]
[328651076,1717679443687,-500.0,0.00024657,2]
[328651077,1717679443697,-503.73079873,0.00024657,2]
[328651078,1717679443707,-500.57697977,0.00024657,2]
[328651079,1717679443716,-500.0,0.00024657,2]
[328651080,1717679443727,-500.0,0.00024657,2]
[328651081,1717679443738,-500.0,0.00024657,2]
[328651082,1717679443747,-423.40497099,0.00024657,2]
[328651083,1717679443757,-500.0,0.00024657,2]
[328651084,1717679443767,-500.0,0.00024657,2]
[328651085,1717679443777,-429.77654495,0.00024657,2]
[328651086,1717679443786,-500.0,0.00024657,2]
[328651087,1717679443796,-500.0,0.00024657,2]
[328651088,1717679443805,-500.0,0.00024657,2]
[328651089,1717679443815,-500.0,0.00024657,2]
[328651090,1717679443824,-502.32748514,0.00024657,2]
[328651091,1717679443834,-500.92213686,0.00024657,2]
[328651092,1717679443844,-500.0,0.00024657,2]
[328651093,1717679443853,-500.0,0.00024657,2]
[328651094,1717679443863,-712.57,0.00024657,2]
[328651095,1717679443874,-501.11547265,0.00024657,2]
[328651096,1717679443883,-500.0,0.00024657,2]
[328651097,1717679443893,-500.0,0.00024657,2]
[328651098,1717679443903,-500.0,0.00024657,2]
[328651099,1717679443913,-511.00909559,0.00024657,2]
[328651100,1717679443922,-1603.44,0.00024657,2]
[328651101,1717679443932,-500.0,0.00024657,2]
[328651102,1717679443941,-500.0,0.00024657,2]
[328651103,1717679443951,-790.97,0.00024657,2]
[328651104,1717679443960,-500.0,0.00024657,2]
[328651105,1717679443970,-500.0,0.00024657,2]
[328651106,1717679443981,-500.0,0.00024657,2]
[328651107,1717679443991,-500.0,0.00024657,2]
[328651108,1717679444000,-500.0,0.00024657,2]
[328651109,1717679444009,-177.010358,0.00024657,2]
[328651110,1717679444018,-500.0,0.00024657,2]
[328651111,1717679444028,-500.0,0.00024657,2]
[328651112,1717679444037,-600.55443172,0.00024657,2]
[328651113,1717679444047,-500.0,0.00024657,2]
[328651114,1717679444057,-500.0,0.00024657,2]
[328651115,1717679444066,-422.03675893,0.00024657,2]
[328651116,1717679444076,-501.3372739,0.00024657,2]
[328651117,1717679444085,-500.0,0.00024657,2]
[328651118,1717679444094,-500.0,0.00024657,2]
[328651119,1717679444104,-500.0,0.00024657,2]
[328651120,1717679444113,-500.0,0.00024657,2]
[328651121,1717679444122,-521.86747022,0.00024657,2]
[328651122,1717679444132,-500.0,0.00024657,2]
[328651123,1717679444142,-500.0,0.00024657,2]
[328651124,1717679444151,-500.0,0.00024657,2]